fUSD/lending_fUSD_20240319
["ID","MTS","AMOUNT","RATE_DAILY","PERIOD"]
[319595315,1710885081007,-626.59,0.00030958,2]
[319595316,1710885081017,-1532.23,0.00030958,2]
[319595317,1710885081027,-500.0,0.00030958,2]
[319595318,1710885081038,-1675.59,0.00030958,2]
[319595319,1710885081048,-1109.08,0.00030958,2]
[319595320,1710885081058,-1175.56,0.00030958,2]
[319595321,1710885081068,-1104.88,0.00030958,2]
[319595322,1710885081079,-1008.18,0.00030958,2]
[319595323,1710885081089,-2383.57,0.00030958,2]
[319595324,1710885081099,-6551.95,0.00030958,2]
[319595325,1710885081109,-20378.39,0.00030958,2]
[319595326,1710885081118,-3428.01,0.00030958,2]
[319595327,1710885081128,-500.0,0.00030958,2]
[319595328,1710885081138,-500.0,0.00030958,2]
[319595329,1710885081149,-500.0,0.00030958,2]
[319595330,1710885081159,-724.41,0.00030958,2]
[319595331,1710885081170,-4023.07,0.00030958,2]
[319595332,1710885081180,-2691.76,0.00030958,2]
[319595333,1710885081191,-500.0,0.00030958,2]
[319595334,1710885081202,-518.98,0.00030958,2]
[319595335,1710885081212,-532.04,0.00030958,2]
[319595336,1710885081223,-3655.41,0.00030958,2]
[319595337,1710885081233,-500.0,0.00030958,2]
[319595338,1710885081244,-3100.4,0.00030958,2]
[319595339,1710885081255,-532.61,0.00030958,2]
[319595340,1710885081265,-5255.9,0.00030958,2]
[319595341,1710885081276,-1495.58,0.00030958,2]
[319595342,1710885081297,-646.23,0.00030958,2]
[319595343,1710885081322,-500.0,0.00030958,2]
[319595344,1710885081334,-500.0,0.00030958,2]
[319595345,1710885081345,-500.0,0.00030958,2]
[319595346,1710885081356,-856.3,0.00030958,2]
[319595347,1710885081368,-1919.76,0.00030958,2]
[319595348,1710885081379,-2848.19,0.00030958,2]
[319595349,1710885081390,-500.0,0.00030958,2]
[319595350,1710885081401,-514.35,0.00030958,2]
[319595351,1710885081412,-84885.72,0.00030958,2]
[319595352,1710885081422,-917.99,0.00030958,2]
[319595353,1710885081433,-7528.25,0.00030958,2]
[319595354,1710885081445,-2075.6,0.00030958,2]
[319595355,1710885081458,-556.06,0.00030958,2]
[319595356,1710885081468,-500.0,0.00030958,2]
[319595357,1710885081479,-4053.66,0.00030958,2]
[319595358,1710885081491,-950.92,0.00030958,2]
[319595359,1710885081501,-1498.56,0.00030958,2]
[319595360,1710885081511,-500.0,0.00030958,2]
[319595361,1710885081522,-6114.82,0.00030958,2]
[319595362,1710885081532,-1068.02,0.00030958,2]
[319595363,1710885081542,-1140.75,0.00030958,2]
[319595364,1710885081553,-1363.9,0.00030958,2]
[319595365,1710885081563,-500.0,0.00030958,2]
[319595366,1710885081574,-500.0,0.00030958,2]
[319595367,1710885081584,-680.37,0.00030958,2]
[319595368,1710885081595,-500.0,0.00030958,2]
[319595369,1710885081605,-7331.78,0.00030958,2]
[319595370,1710885081616,-6608.67,0.00030958,2]
[319595371,1710885081627,-535.13,0.00030958,2]
[319595372,1710885081637,-5255.76,0.00030958,2]
[319595373,1710885081648,-1065.89,0.00030958,2]
[319595374,1710885081658,-500.0,0.00030958,2]
[319595375,1710885081668,-2244.41,0.00030958,2]
[319595376,1710885081678,-501.67,0.00030958,2]
[319595377,1710885081688,-12679.11,0.00030958,2]
[319595378,1710885081698,-1134.2,0.00030958,2]
[319595379,1710885081709,-500.0,0.00030958,2]
[319595380,1710885081720,-500.0,0.00030958,2]
[319595381,1710885081729,-500.0,0.00030958,2]
[319595382,1710885081739,-5689.03,0.00030958,2]
[319595383,1710885081748,-500.0,0.00030958,2]
[319595384,1710885081758,-952.29,0.00030958,2]
[319595385,1710885081768,-16057.66,0.00030958,2]
[319595386,1710885081779,-500.0,0.00030958,2]
[319595387,1710885081790,-661.71,0.00030958,2]
[319595388,1710885081800,-9318.38,0.00030958,2]
[319595389,1710885081810,-6799.03,0.00030958,2]
[319595390,1710885081820,-4026.73,0.00030958,2]
[319595391,1710885081832,-3035.5,0.00030958,2]
[319595392,1710885081842,-3750.07,0.00030958,2]
[319595393,1710885081851,-935.16,0.00030958,2]
[319595394,1710885081860,-6185.77,0.00030958,2]
[319595395,1710885081870,-1750.15,0.00030958,2]
[319595396,1710885081881,-507.49,0.00030958,2]
[319595397,1710885081891,-2644.39,0.00030958,2]
[319595398,1710885082239,-500.0,0.00030958,2]
[319595399,1710885082251,-500.0,0.00030958,2]
[319595400,1710885082261,-21984.05,0.00030958,2]
[319595401,1710885082272,-500.0,0.00030958,2]
[319595402,1710885082283,-1656.75,0.00030958,2]
[319595403,1710885082292,-682.19,0.00030958,2]
[319595404,1710885082302,-3232.39,0.00030958,2]
[319595405,1710885082313,-4012.77,0.00030958,2]
[319595406,1710885082323,-500.0,0.00030958,2]
[319595407,1710885082334,-5906.29,0.00030958,2]
[319595408,1710885082345,-2450.74,0.00030958,2]
[319595409,1710885082355,-500.0,0.00030958,2]
[319595410,1710885082366,-500.0,0.00030958,2]
[319595411,1710885082375,-500.0,0.00030958,2]
[319595412,1710885082385,-500.0,0.00030958,2]
[319595413,1710885082395,-500.0,0.00030958,2]
[319595414,1710885082405,-500.0,0.00030958,2]
[319595415,1710885082415,-500.0,0.00030958,2]
[319595416,1710885082425,-1898.34,0.00030958,2]
[319595417,1710885082434,-6356.12,0.00030958,2]
[319595418,1710885082445,-860.9,0.00030958,2]
[319595419,1710885082459,-500.0,0.00030958,2]
[319595420,1710885082471,-988.62,0.00030958,2]
[319595421,1710885082482,-741.49,0.00030958,2]
[319595422,1710885082493,-500.0,0.00030958,2]
[319595423,1710885082504,-502.93,0.00030958,2]
[319595424,1710885082514,-10393.93,0.00030958,2]
[319595425,1710885082525,-3281.78,0.00030958,2]
[319595426,1710885082536,-887.69,0.00030958,2]
[319595427,1710885082547,-500.0,0.00030958,2]
[319595428,1710885082558,-2054.31,0.00030958,2]
[319595429,1710885082569,-1073.2,0.00030958,2]
[319595430,1710885082579,-500.0,0.00030958,2]
[319595431,1710885082590,-500.0,0.00030958,2]
[319595432,1710885082601,-500.0,0.00030958,2]
[319595433,1710885082611,-5676.82,0.00030958,2]
[319595434,1710885082621,-500.0,0.00030958,2]
[319595435,1710885082631,-2336.1,0.00030958,2]
[319595436,1710885082643,-784.81,0.00030958,2]
[319595437,1710885082654,-500.0,0.00030958,2]
[319595438,1710885082666,-2928.09,0.00030958,2]
[319595439,1710885082677,-958.78,0.00030958,2]
[319595440,1710885082687,-5305.03,0.00030958,2]
[319595441,1710885082698,-12462.52,0.00030958,2]
[319595442,1710885082708,-742.85,0.00030958,2]
[319595443,1710885082717,-6273.21,0.00030958,2]
[319595444,1710885082728,-500.0,0.00030958,2]
[319595445,1710885082738,-3248.64,0.00030958,2]
[319595446,1710885082747,-7424.85,0.00030958,2]
[319595447,1710885082757,-500.0,0.00030958,2]
[319595448,1710885082767,-9028.78,0.00030958,2]
[319595449,1710885082777,-8000.71,0.00030958,2]
[319595450,1710885082786,-500.0,0.00030958,2]
[319595451,1710885082796,-7152.27,0.00030958,2]
[319595452,1710885082806,-603.25,0.00030958,2]
[319595453,1710885082816,-920.58,0.00030958,2]
[319595454,1710885082827,-862.02,0.00030958,2]
[319595455,1710885082836,-11402.88,0.00030958,2]
[319595456,1710885082846,-5180.59,0.00030958,2]
[319595457,1710885082856,-1058.28,0.00030958,2]
[319595458,1710885082867,-500.0,0.00030958,2]
[319595459,1710885082877,-6676.62,0.00030958,2]
[319595460,1710885082886,-50748.97,0.00030958,2]
[319595461,1710885082896,-12563.76,0.00030958,2]
[319595462,1710885082906,-4392.06,0.00030958,2]
[319595463,1710885082915,-500.0,0.00030958,2]
[319595464,1710885082925,-500.0,0.00030958,2]
[319595465,1710885082934,-947.45,0.00030958,2]
[319595466,1710885082944,-994.47,0.00030958,2]
[319595467,1710885082954,-6289.47,0.00030958,2]
[319595468,1710885082963,-1127.56,0.00030958,2]
[319595469,1710885082972,-500.0,0.00030958,2]
[319595470,1710885082982,-500.0,0.00030958,2]
[319595471,1710885082991,-1554.32,0.00030958,2]
[319595472,1710885083000,-1563.9,0.00030958,2]
[319595473,1710885083010,-2538.59,0.00030958,2]
[319595474,1710885083019,-9279.39,0.00030958,2]
[319595475,1710885083028,-2973.35,0.00030958,2]
[319595476,1710885083037,-500.0,0.00030958,2]
[319595477,1710885083047,-1071.73,0.00030958,2]
[319595478,1710885083056,-1557.91,0.00030958,2]
[319595479,1710885083065,-500.0,0.00030958,2]
[319595480,1710885083074,-5460.3,0.00030958,2]
[319595481,1710885083084,-921.84,0.00030958,2]
[319595482,1710885083094,-1497.67,0.00030958,2]
[319595483,1710885083103,-549.68,0.00030958,2]
[319595484,1710885083112,-866.95,0.00030958,2]
[319595485,1710885083121,-500.0,0.00030958,2]
[319595486,1710885083130,-500.0,0.00030958,2]
[319595487,1710885083140,-23885.26,0.00030958,2]
[319595488,1710885083149,-6038.59,0.00030958,2]
[319595489,1710885083159,-34338.3,0.00030958,2]
[319595490,1710885083170,-2241.19,0.00030958,2]
[319595491,1710885083180,-870.15,0.00030958,2]
[319595492,1710885083190,-1003.35,0.00030958,2]
[319595493,1710885083200,-526.30193885,0.00030958,2]
[319595494,1710885083209,-500.0,0.00030958,2]
[319595495,1710885083219,-5507.6,0.00030958,2]
[319595496,1710885083229,-5378.59,0.00030958,2]
[319595497,1710885083239,-615.59,0.00030958,2]
[319595498,1710885083249,-500.0,0.00030958,2]
[319595499,1710885083268,-681.39,0.00030958,2]
[319595500,1710885083278,-500.0,0.00030958,2]
[319595501,1710885083288,-3623.08,0.00030958,2]
[319595502,1710885083298,-500.0,0.00030958,2]
[319595503,1710885083309,-659.74,0.00030958,2]
[319595504,1710885083318,-500.0,0.00030958,2]
[319595505,1710885083328,-500.0,0.00030958,2]
[319595506,1710885083337,-1648.34,0.00030958,2]
[319595507,1710885083346,-7204.29,0.00030958,2]
[319595508,1710885083357,-500.0,0.00030958,2]
[319595509,1710885083367,-5688.06,0.00030958,2]
[319595510,1710885083376,-976.18,0.00030958,2]
[319595511,1710885083386,-1912.73,0.00030958,2]
[319595512,1710885083395,-3082.4,0.00030958,2]
[319595513,1710885083405,-2522.27,0.00030958,2]
[319595514,1710885083414,-6424.1,0.00030958,2]
[319595515,1710885083424,-1570.96,0.00030958,2]
[319595516,1710885083434,-1409.47,0.00030958,2]
[319595517,1710885083443,-500.0,0.00030958,2]
[319595518,1710885083455,-500.0,0.00030958,2]
[319595519,1710885083466,-2703.38,0.00030958,2]
[319595520,1710885083476,-151.0,0.00030958,7]
[319595521,1710885083486,-151.0,0.00030958,7]
[319595522,1710885083496,-640.99376509,0.00030958,2]
[319595523,1710885083506,-10351.23,0.00030958,2]
[319595524,1710885083515,-500.0,0.00030958,2]
[319595525,1710885083525,-723.42,0.00030958,2]
[319595526,1710885083538,-500.0,0.00030958,2]
[319595527,1710885083549,-3159.85,0.00030958,2]
[319595528,1710885083560,-19207.21,0.00030958,2]
[319595529,1710885083570,-1575.99,0.00030958,2]
[319595530,1710885083581,-3910.17,0.00030958,2]
[319595531,1710885083590,-989.66,0.00030958,2]
[319595532,1710885083600,-2518.49,0.00030958,2]
[319595533,1710885083609,-500.0,0.00030958,2]
[319595534,1710885083618,-500.0,0.00030958,2]
[319595535,1710885083628,-500.0,0.00030958,2]
[319595536,1710885083637,-602.98,0.00030958,2]
[319595537,1710885083646,-2902.62,0.00030958,2]
[319595538,1710885083655,-1081.46,0.00030958,2]
[319595539,1710885083665,-500.0,0.00030958,2]
[319595540,1710885083675,-996.99,0.00030958,2]
[319595541,1710885083684,-11316.17,0.00030958,2]
[319595542,1710885083694,-722.94,0.00030958,2]
[319595543,1710885083703,-21059.27,0.00030958,2]
[319595544,1710885083713,-1144.28,0.00030958,2]
[319595545,1710885083723,-500.0,0.00030958,2]
[319595546,1710885083732,-592.77,0.00030958,2]
[319595547,1710885083742,-3248.34,0.00030958,2]
[319595548,1710885083752,-611.45,0.00030958,2]
[319595549,1710885083762,-500.0,0.00030958,2]
[319595550,1710885083772,-500.0,0.00030958,2]
[319595551,1710885083781,-1214.02,0.00030958,2]
[319595552,1710885083792,-5044.94,0.00030958,2]
[319595553,1710885083802,-500.0,0.00030958,2]
[319595554,1710885083811,-500.0,0.00030958,2]
[319595555,1710885083821,-6225.21,0.00030958,2]
[319595556,1710885083831,-856.7,0.00030958,2]
[319595557,1710885083840,-608.72,0.00030958,2]
[319595558,1710885083849,-500.0,0.00030958,2]
[319595559,1710885083858,-1511.11,0.00030958,2]
[319595560,1710885083869,-1279.36,0.00030958,2]
[319595561,1710885083878,-497.07695334,0.00030958,2]
[319595562,1710885083888,-500.0,0.00030958,2]
[319595563,1710885083897,-8737.55,0.00030958,2]
[319595564,1710885083906,-11752.03,0.00030958,2]
[319595565,1710885083916,-4482.5,0.00030958,2]
[319595566,1710885083925,-500.0,0.00030958,2]
[319595567,1710885083935,-1788.46,0.00030958,2]
[319595568,1710885083945,-500.0,0.00030958,2]
[319595569,1710885083954,-5316.22,0.00030958,2]
[319595570,1710885083963,-500.0,0.00030958,2]
[319595571,1710885083973,-22991.35,0.00030958,2]
[319595572,1710885083982,-1321.67,0.00030958,2]
[319595573,1710885083992,-1177.76,0.00030958,2]
[319595574,1710885084001,-518.08,0.00030958,2]
[319595575,1710885084011,-500.0,0.00030958,2]
[319595576,1710885084021,-505.75,0.00030958,2]
[319595577,1710885084031,-500.0,0.00030958,2]
[319595578,1710885084040,-2886.03,0.00030958,2]
[319595579,1710885084049,-1429.54,0.00030958,2]
[319595580,1710885084058,-500.0,0.00030958,2]
[319595581,1710885084068,-3473.42,0.00030958,2]
[319595582,1710885084078,-20562.17,0.00030958,2]
[319595583,1710885084087,-4026.93,0.00030958,2]
[319595584,1710885084097,-500.0,0.00030958,2]
[319595585,1710885084106,-805.12,0.00030958,2]
[319595586,1710885084116,-981.11,0.00030958,2]
[319595587,1710885084125,-500.0,0.00030958,2]
[319595588,1710885084135,-877.4,0.00030958,2]
[319595589,1710885084145,-1121.88,0.00030958,2]
[319595590,1710885084156,-836.09,0.00030958,2]
[319595591,1710885084166,-500.0,0.00030958,2]
[319595592,1710885084175,-12965.17,0.00030958,2]
[319595593,1710885084186,-8047.18,0.00030958,2]
[319595594,1710885084195,-4640.74,0.00030958,2]
[319595595,1710885084206,-6661.58,0.00030958,2]
[319595596,1710885084216,-500.0,0.00030958,2]
[319595597,1710885084226,-720.32,0.00030958,2]
[319595598,1710885084236,-500.0,0.00030958,2]
[319595599,1710885084246,-3306.12,0.00030958,2]
[319595600,1710885084256,-1406.25,0.00030958,2]
[319595601,1710885084266,-603.58,0.00030958,2]
[319595602,1710885084276,-500.0,0.00030958,2]
[319595603,1710885084285,-500.0,0.00030958,2]
[319595604,1710885084294,-1438.11,0.00030958,2]
[319595605,1710885084304,-393.48851184,0.00030958,2]
[319595606,1710885084314,-6333.98,0.00030958,2]
[319595607,1710885084324,-26854.72,0.00030958,2]
[319595608,1710885084334,-2692.37,0.00030958,2]
[319595609,1710885084344,-614.48,0.00030958,2]
[319595610,1710885084353,-1298.71,0.00030958,2]
[319595611,1710885084363,-151.0,0.00030958,7]
[319595612,1710885084373,-262.820352,0.00030958,7]
[319595613,1710885084383,-2847.31,0.00030958,2]
[319595614,1710885084393,-500.0,0.00030958,2]
[319595615,1710885084403,-1953.31,0.00030958,2]
[319595616,1710885084414,-521.8,0.00030958,2]
[319595617,1710885084425,-972.96,0.00030958,2]
[319595618,1710885084435,-500.0,0.00030958,2]
[319595619,1710885084448,-599.79,0.00030958,2]
[319595620,1710885084458,-1902.54,0.00030958,2]
[319595621,1710885084468,-1686.82,0.00030958,2]
[319595622,1710885084478,-673.97,0.00030958,2]
[319595623,1710885084489,-649.62,0.00030958,2]
[319595624,1710885084500,-26670.31,0.00030958,2]
[319595625,1710885084509,-500.0,0.00030958,2]
[319595626,1710885084518,-5843.77,0.00030958,2]
[319595627,1710885084529,-513.49643,0.00030958,7]
[319595628,1710885084540,-1828.95,0.00030958,2]
[319595629,1710885084550,-513.49643,0.00030958,7]
[319595630,1710885084559,-1109.32,0.00030958,2]
[319595631,1710885084569,-691.9,0.00030958,2]
[319595632,1710885084580,-1199.84,0.00030958,2]
[319595633,1710885084590,-1216.0,0.00030958,2]
[319595634,1710885084599,-513.49643,0.00030958,7]
[319595635,1710885084609,-500.0,0.00030958,2]
[319595636,1710885084620,-513.49643,0.00030958,7]
[319595637,1710885084629,-418.93760766,0.00030994,2]
[319595638,1710885084639,-3157.06312314,0.00030995,2]
[319595639,1710885084737,-1291.99306394,0.00030995,2]
[319595640,1710885084747,-186.32733665,0.00031132,2]
[319595641,1710885084756,-222.032006,0.00031227,3]
[319595642,1710885084767,-222.032006,0.00031227,4]
[319595643,1710885084776,-222.032006,0.00031228,4]
[319595644,1710885084787,-222.032006,0.00031228,3]
[319595645,1710885084796,-931.04300314,0.00031229,2]
[319595646,1710885084805,-150.0,0.00031231,2]
[319595647,1710885084815,-150.0,0.00031231,2]
[319595648,1710885084825,-5477.76450715,0.00031232,4]
[319595649,1710885084835,-905.92,0.00031232,2]
[319595650,1710885084845,-760.8,0.00031232,2]
[319595651,1710885084854,-500.0,0.00031232,2]
[319595652,1710885084864,-500.0,0.00031232,2]
[319595653,1710885084875,-918.16,0.00031232,2]
[319595654,1710885084884,-1354.5,0.00031232,2]
[319595655,1710885084895,-500.0,0.00031232,2]
[319595656,1710885084905,-500.0,0.00031232,2]
[319595657,1710885084914,-150.0,0.00031232,2]
[319595658,1710885084924,-563.69,0.00031232,2]
[319595659,1710885084933,-553.29,0.00031232,2]
[319595660,1710885084942,-500.0,0.00031232,2]
[319595661,1710885084952,-500.0,0.00031232,2]
[319595662,1710885084961,-500.0,0.00031232,2]
[319595663,1710885084970,-500.0,0.00031232,2]
[319595664,1710885084980,-500.0,0.00031232,2]
[319595665,1710885084989,-576.34,0.00031232,2]
[319595666,1710885084998,-500.0,0.00031232,2]
[319595667,1710885085008,-500.0,0.00031232,2]
[319595668,1710885085017,-628.41,0.00031232,2]
[319595669,1710885085026,-500.0,0.00031232,2]
[319595670,1710885085035,-500.0,0.00031232,2]
[319595671,1710885085044,-500.0,0.00031232,2]
[319595672,1710885085054,-964.89,0.00031232,2]
[319595673,1710885085063,-620.13,0.00031232,2]
[319595674,1710885085072,-786.01,0.00031232,2]
[319595675,1710885085081,-564.61,0.00031232,2]
[319595676,1710885085091,-865.28,0.00031232,2]
[319595677,1710885085100,-500.0,0.00031232,2]
[319595678,1710885085109,-500.0,0.00031232,2]
[319595679,1710885085118,-500.0,0.00031232,2]
[319595680,1710885085127,-500.0,0.00031232,2]
[319595681,1710885085136,-529.43,0.00031232,2]
[319595682,1710885085145,-618.58,0.00031232,2]
[319595683,1710885085155,-500.0,0.00031232,2]
[319595684,1710885085164,-563.52,0.00031232,2]
[319595685,1710885085174,-500.0,0.00031232,2]
[319595686,1710885085183,-2015.12,0.00031232,2]
[319595687,1710885085194,-500.0,0.00031232,2]
[319595688,1710885085203,-500.0,0.00031232,2]
[319595689,1710885085212,-631.9,0.00031232,2]
[319595690,1710885085222,-681.13,0.00031232,2]
[319595691,1710885085231,-1086.99,0.00031232,2]
[319595692,1710885085241,-412.35374204,0.00031232,2]
[319595693,1710885085251,-500.0,0.00031232,2]
[319595694,1710885085260,-500.0,0.00031232,2]
[319595695,1710885085269,-500.0,0.00031232,2]
[319595696,1710885085279,-500.0,0.00031232,2]
[319595697,1710885085288,-652.31,0.00031232,2]
[319595698,1710885085298,-1320.6,0.00031232,2]
[319595699,1710885085307,-1250.92,0.00031232,2]
[319595700,1710885085317,-1120.04,0.00031232,2]
[319595701,1710885085326,-500.0,0.00031232,2]
[319595702,1710885085336,-566.75564102,0.00031232,2]
[319595703,1710885085346,-510.25,0.00031232,2]
[319595704,1710885085354,-921.3,0.00031232,2]
[319595705,1710885085364,-1041.72,0.00031232,2]
[319595706,1710885085373,-1043.25,0.00031232,2]
[319595707,1710885085383,-500.0,0.00031232,2]
[319595708,1710885085392,-500.0,0.00031232,2]
[319595709,1710885085400,-535.44,0.00031232,2]
[319595710,1710885085409,-500.0,0.00031232,2]
[319595711,1710885085418,-500.0,0.00031232,2]
[319595712,1710885085427,-500.0,0.00031232,2]
[319595713,1710885085437,-500.0,0.00031232,2]
[319595714,1710885085446,-500.0,0.00031232,2]
[319595715,1710885085457,-957.02,0.00031232,2]
[319595716,1710885085467,-549.6,0.00031232,2]
[319595717,1710885085476,-345.17627028,0.00031232,2]
[319595718,1710885085485,-500.0,0.00031232,2]
[319595719,1710885085495,-500.0,0.00031232,2]
[319595720,1710885085503,-526.27,0.00031232,2]
[319595721,1710885085513,-546.14,0.00031232,2]
[319595722,1710885085521,-500.0,0.00031232,2]
[319595723,1710885085531,-500.0,0.00031232,2]
[319595724,1710885085541,-983.01,0.00031232,2]
[319595725,1710885085551,-500.0,0.00031232,2]
[319595726,1710885085560,-500.0,0.00031232,2]
[319595727,1710885085569,-500.0,0.00031232,2]
[319595728,1710885085578,-500.0,0.00031232,2]
[319595729,1710885085588,-502.25,0.00031232,2]
[319595730,1710885085597,-583.52,0.00031232,2]
[319595731,1710885085607,-500.0,0.00031232,2]
[319595732,1710885085616,-500.0,0.00031232,2]
[319595733,1710885085625,-701.32,0.00031232,2]
[319595734,1710885085635,-845.97,0.00031232,2]
[319595735,1710885085645,-500.0,0.00031232,2]
[319595736,1710885085654,-604.6,0.00031232,2]
[319595737,1710885085664,-500.0,0.00031232,2]
[319595738,1710885085673,-626.44,0.00031232,2]
[319595739,1710885085682,-500.0,0.00031232,2]
[319595740,1710885085691,-500.0,0.00031232,2]
[319595741,1710885085700,-1296.65,0.00031232,2]
[319595742,1710885085710,-500.0,0.00031232,2]
[319595743,1710885085719,-1134.53,0.00031232,2]
[319595744,1710885085729,-500.0,0.00031232,2]
[319595745,1710885085738,-500.0,0.00031232,2]
[319595746,1710885085747,-783.57,0.00031232,2]
[319595747,1710885085757,-507.2,0.00031232,2]
[319595748,1710885085766,-1022.89,0.00031232,2]
[319595749,1710885085776,-668.88,0.00031232,2]
[319595750,1710885085785,-500.0,0.00031232,2]
[319595751,1710885085794,-500.0,0.00031232,2]
[319595752,1710885085804,-597.77,0.00031232,2]
[319595753,1710885085813,-500.0,0.00031232,2]
[319595754,1710885085823,-500.0,0.00031232,2]
[319595755,1710885085833,-500.0,0.00031232,2]
[319595756,1710885085843,-1578.12,0.00031232,2]
[319595757,1710885085853,-1317.95,0.00031232,2]
[319595758,1710885085864,-500.0,0.00031232,2]
[319595759,1710885085873,-500.0,0.00031232,2]
[319595760,1710885085883,-500.0,0.00031232,2]
[319595761,1710885085892,-706.81,0.00031232,2]
[319595762,1710885085901,-500.0,0.00031232,2]
[319595763,1710885085911,-820.72,0.00031232,2]
[319595764,1710885085920,-500.0,0.00031232,2]
[319595765,1710885085930,-511.35,0.00031232,2]
[319595766,1710885085939,-500.0,0.00031232,2]
[319595767,1710885085948,-1159.47,0.00031232,2]
[319595768,1710885085957,-752.64,0.00031232,2]
[319595769,1710885085966,-1433.6,0.00031232,2]
[319595770,1710885085975,-500.0,0.00031232,2]
[319595771,1710885085986,-500.0,0.00031232,2]
[319595772,1710885085995,-500.0,0.00031232,2]
[319595773,1710885086004,-500.0,0.00031232,2]
[319595774,1710885086014,-1189.27,0.00031232,2]
[319595775,1710885086023,-500.0,0.00031232,2]
[319595776,1710885086032,-500.0,0.00031232,2]
[319595777,1710885086041,-572.14,0.00031232,2]
[319595778,1710885086050,-1127.91,0.00031232,2]
[319595779,1710885086059,-729.46,0.00031232,2]
[319595780,1710885086068,-500.0,0.00031232,2]
[319595781,1710885086077,-500.0,0.00031232,2]
[319595782,1710885086088,-1199.62,0.00031232,2]
[319595783,1710885086098,-562.99,0.00031232,2]
[319595784,1710885086107,-786.3,0.00031232,2]
[319595785,1710885086117,-500.0,0.00031232,2]
[319595786,1710885086126,-500.0,0.00031232,2]
[319595787,1710885086135,-1265.95,0.00031232,2]
[319595788,1710885086145,-500.0,0.00031232,2]
[319595789,1710885086154,-580.29,0.00031232,2]
[319595790,1710885086164,-500.0,0.00031232,2]
[319595791,1710885086174,-500.0,0.00031232,2]
[319595792,1710885086184,-500.0,0.00031232,2]
[319595793,1710885086194,-2136.15,0.00031232,2]
[319595794,1710885086205,-718.68,0.00031232,2]
[319595795,1710885086215,-928.05,0.00031232,2]
[319595796,1710885086224,-500.0,0.00031232,2]
[319595797,1710885086234,-783.9,0.00031232,2]
[319595798,1710885086244,-1320.02,0.00031232,2]
[319595799,1710885086255,-1043.02,0.00031232,2]
[319595800,1710885086264,-802.08,0.00031232,2]
[319595801,1710885086274,-500.0,0.00031232,2]
[319595802,1710885086283,-500.0,0.00031232,2]
[319595803,1710885086292,-1028.49,0.00031232,2]
[319595804,1710885086302,-1179.51,0.00031232,2]
[319595805,1710885086311,-812.3,0.00031232,2]
[319595806,1710885086321,-1146.04,0.00031232,2]
[319595807,1710885086330,-500.0,0.00031232,2]
[319595808,1710885086340,-500.0,0.00031232,2]
[319595809,1710885086349,-1045.71,0.00031232,2]
[319595810,1710885086359,-500.0,0.00031232,2]
[319595811,1710885086370,-500.0,0.00031232,2]
[319595812,1710885086379,-530.67,0.00031232,2]
[319595813,1710885086388,-649.64,0.00031232,2]
[319595814,1710885086398,-446.34070021,0.00031232,2]